[Event "Titled Tuesday Blitz January 17 Early 2023"]
[White "Bychkov, Vladimir"]
[Black "Fiorito, Francisco"]
[WhiteFideId "24151513"]
[BlackFideId "180165"]
[WhiteElo "2225"]
[BlackElo "2305"]
[Result "1-0"]
[Round "07"]
[TimeControl "180+2"]
[Date "2023.01.17"]
[WhiteClock "0:00:09"]
[BlackClock "0:00:01"]

1. d4 {[%clk 0:02:59]}  Nf6 {[%clk 0:02:56]} 2. c4 {[%clk 0:02:58]}  g6 {[%clk 0:02:56]} 3. Nc3 {[%clk 0:02:58]}  d5 {[%clk 0:02:56]} 4. Nf3 {[%clk 0:02:58]}  Bg7 {[%clk 0:02:56]} 5. Bf4 {[%clk 0:02:58]}  c6 {[%clk 0:02:30]} 6. e3 {[%clk 0:02:55]}  O-O {[%clk 0:02:30]} 7. Be2 {[%clk 0:02:54]}  dxc4 {[%clk 0:02:29]} 8. Bxc4 {[%clk 0:02:53]}  b5 {[%clk 0:02:30]} 9. Bb3 {[%clk 0:02:53]}  Bb7 {[%clk 0:02:29]} 10. O-O {[%clk 0:02:52]}  a6 {[%clk 0:02:28]} 11. a4 {[%clk 0:02:50]}  Nbd7 {[%clk 0:02:28]} 12. Qe2 {[%clk 0:02:44]}  e6 {[%clk 0:02:23]} 13. Rfd1 {[%clk 0:02:43]}  Re8 {[%clk 0:02:22]} 14. Ne5 {[%clk 0:02:41]}  Qb6 {[%clk 0:02:11]} 15. a5 {[%clk 0:02:31]}  Qa7 {[%clk 0:02:07]} 16. Nxd7 {[%clk 0:02:25]}  Nxd7 {[%clk 0:02:06]} 17. Ne4 {[%clk 0:02:25]}  c5 {[%clk 0:01:47]} 18. Nd6 {[%clk 0:02:23]}  Red8 {[%clk 0:01:46]} 19. Bg5 {[%clk 0:02:13]}  Rdb8 {[%clk 0:01:17]} 20. Nxf7 {[%clk 0:01:54]}  Kxf7 {[%clk 0:01:12]} 21. Bxe6+ {[%clk 0:01:53]}  Kxe6 {[%clk 0:00:53]} 22. Qg4+ {[%clk 0:01:53]}  Kf7 {[%clk 0:00:53]} 23. Qxd7+ {[%clk 0:01:53]}  Kg8 {[%clk 0:00:54]} 24. d5 {[%clk 0:01:27]}  Re8 {[%clk 0:00:45]} 25. f3 {[%clk 0:01:02]}  Qb8 {[%clk 0:00:32]} 26. e4 {[%clk 0:01:01]}  Qc8 {[%clk 0:00:30]} 27. Qd6 {[%clk 0:00:51]}  c4 {[%clk 0:00:23]} 28. Rd2 {[%clk 0:00:35]}  Rb8 {[%clk 0:00:20]} 29. Bf4 {[%clk 0:00:31]}  Ra8 {[%clk 0:00:19]} 30. e5 {[%clk 0:00:31]}  Qf5 {[%clk 0:00:18]} 31. e6 {[%clk 0:00:27]}  Bf8 {[%clk 0:00:15]} 32. Qc7 {[%clk 0:00:19]}  Bb4 {[%clk 0:00:12]} 33. Re2 {[%clk 0:00:12]}  Re7 {[%clk 0:00:12]} 34. Qe5 {[%clk 0:00:10]}  Qxe5 {[%clk 0:00:11]} 35. Rxe5 {[%clk 0:00:11]}  Bd6 {[%clk 0:00:10]} 36. Rae1 {[%clk 0:00:09]}  Bxe5 {[%clk 0:00:10]} 37. Rxe5 {[%clk 0:00:10]}  Rd8 {[%clk 0:00:09]} 38. Bg5 {[%clk 0:00:10]}  Rxd5 {[%clk 0:00:03]} 39. Rxd5 {[%clk 0:00:10]}  Bxd5 {[%clk 0:00:04]} 40. Bxe7 {[%clk 0:00:11]}  Bxe6 {[%clk 0:00:05]} 41. Kf2 {[%clk 0:00:11]}  Kf7 {[%clk 0:00:04]} 42. Bg5 {[%clk 0:00:11]}  Bd5 {[%clk 0:00:05]} 43. Ke3 {[%clk 0:00:11]}  Ke6 {[%clk 0:00:05]} 44. Kd4 {[%clk 0:00:12]}  Kd6 {[%clk 0:00:05]} 45. Bf4+ {[%clk 0:00:12]}  Kc6 {[%clk 0:00:05]} 46. Ke5 {[%clk 0:00:12]}  b4 {[%clk 0:00:05]} 47. Kd4 {[%clk 0:00:12]}  Bf7 {[%clk 0:00:05]} 48. Bd2 {[%clk 0:00:12]}  Kb5 {[%clk 0:00:05]} 49. g4 {[%clk 0:00:11]}  c3 {[%clk 0:00:04]} 50. bxc3 {[%clk 0:00:11]}  b3 {[%clk 0:00:04]} 51. Bc1 {[%clk 0:00:10]}  Kxa5 {[%clk 0:00:03]} 52. Kc5 {[%clk 0:00:10]}  Ka4 {[%clk 0:00:02]} 53. Bb2 {[%clk 0:00:10]}  Be6 {[%clk 0:00:01]} 54. c4 {[%clk 0:00:10]}  a5 {[%clk 0:00:01]} 55. h4 {[%clk 0:00:09]} 1-0


[Site "https://www.chess.com"]

[Event "Titled Tuesday Blitz January 17 Early 2023"]
[White "Silva, Pedro Gil Ferreira Da"]
[Black "Melian, Juan Sebastian"]
[WhiteFideId "1946102"]
[BlackFideId "3706575"]
[WhiteElo "2227"]
[BlackElo "2293"]
[Result "0-1"]
[Round "07"]
[TimeControl "180+2"]
[Date "2023.01.17"]
[WhiteClock "0:00:20"]
[BlackClock "0:00:30"]

1. c4 {[%clk 0:03:00]}  Nf6 {[%clk 0:02:51]} 2. Nf3 {[%clk 0:02:59]}  e6 {[%clk 0:02:52]} 3. g3 {[%clk 0:02:59]}  d5 {[%clk 0:02:53]} 4. Bg2 {[%clk 0:02:59]}  Be7 {[%clk 0:02:53]} 5. O-O {[%clk 0:03:00]}  O-O {[%clk 0:02:53]} 6. b3 {[%clk 0:03:00]}  c5 {[%clk 0:02:52]} 7. Bb2 {[%clk 0:02:57]}  Nc6 {[%clk 0:02:51]} 8. e3 {[%clk 0:02:53]}  d4 {[%clk 0:02:41]} 9. exd4 {[%clk 0:02:49]}  cxd4 {[%clk 0:02:41]} 10. Qe2 {[%clk 0:02:49]}  Bc5 {[%clk 0:02:38]} 11. d3 {[%clk 0:02:42]}  Re8 {[%clk 0:02:35]} 12. a3 {[%clk 0:02:37]}  a5 {[%clk 0:02:34]} 13. Nbd2 {[%clk 0:02:35]}  e5 {[%clk 0:02:33]} 14. Ng5 {[%clk 0:02:31]}  Bf5 {[%clk 0:02:28]} 15. Nge4 {[%clk 0:02:31]}  Bf8 {[%clk 0:02:23]} 16. Nxf6+ {[%clk 0:02:19]}  Qxf6 {[%clk 0:02:16]} 17. Ne4 {[%clk 0:02:19]}  Qd8 {[%clk 0:02:16]} 18. Rfe1 {[%clk 0:02:14]}  h6 {[%clk 0:02:15]} 19. c5 {[%clk 0:01:46]}  Bh7 {[%clk 0:02:04]} 20. Rac1 {[%clk 0:01:37]}  f5 {[%clk 0:02:02]} 21. Nd6 {[%clk 0:01:35]}  Bxd6 {[%clk 0:02:01]} 22. cxd6 {[%clk 0:01:35]}  Qxd6 {[%clk 0:02:02]} 23. Qc2 {[%clk 0:01:33]}  e4 {[%clk 0:01:58]} 24. dxe4 {[%clk 0:01:30]}  fxe4 {[%clk 0:01:34]} 25. Bxe4 {[%clk 0:01:10]}  Bxe4 {[%clk 0:00:55]} 26. Rxe4 {[%clk 0:01:11]}  Rxe4 {[%clk 0:00:44]} 27. Qxe4 {[%clk 0:01:11]}  Rd8 {[%clk 0:00:44]} 28. Rd1 {[%clk 0:01:07]}  Qf6 {[%clk 0:00:36]} 29. h4 {[%clk 0:01:05]}  Qf7 {[%clk 0:00:36]} 30. b4 {[%clk 0:00:28]}  axb4 {[%clk 0:00:37]} 31. axb4 {[%clk 0:00:29]}  Qb3 {[%clk 0:00:37]} 32. Rd2 {[%clk 0:00:22]}  Qxb4 {[%clk 0:00:34]} 33. Qe6+ {[%clk 0:00:21]}  Kh8 {[%clk 0:00:31]} 34. Qf7 {[%clk 0:00:20]}  Qxd2 {[%clk 0:00:30]} 0-1


[Site "https://www.chess.com"]

[Event "Titled Tuesday Blitz January 17 Early 2023"]
[White "Skurikhin, Dmitrij"]
[Black "Martin Carmona, Gaston Manuel"]
[WhiteFideId "4161297"]
[BlackFideId "22284567"]
[WhiteElo "2297"]
[BlackElo "2333"]
[Result "1-0"]
[Round "07"]
[TimeControl "180+2"]
[Date "2023.01.17"]
[WhiteClock "0:00:33"]
[BlackClock "0:01:03"]

1. d4 {[%clk 0:03:00]}  Nf6 {[%clk 0:02:57]} 2. Nf3 {[%clk 0:03:00]}  g6 {[%clk 0:02:58]} 3. c4 {[%clk 0:03:00]}  Bg7 {[%clk 0:02:59]} 4. Nc3 {[%clk 0:03:00]}  O-O {[%clk 0:02:59]} 5. e4 {[%clk 0:03:00]}  d6 {[%clk 0:03:00]} 6. Be2 {[%clk 0:03:00]}  e5 {[%clk 0:03:01]} 7. O-O {[%clk 0:03:00]}  Nc6 {[%clk 0:03:02]} 8. d5 {[%clk 0:03:00]}  Ne7 {[%clk 0:03:02]} 9. Nd2 {[%clk 0:03:01]}  Nd7 {[%clk 0:03:03]} 10. b4 {[%clk 0:03:00]}  a5 {[%clk 0:03:02]} 11. bxa5 {[%clk 0:02:59]}  f5 {[%clk 0:03:01]} 12. f3 {[%clk 0:02:56]}  Rxa5 {[%clk 0:02:59]} 13. Nb3 {[%clk 0:02:56]}  Ra8 {[%clk 0:02:59]} 14. Be3 {[%clk 0:02:56]}  b6 {[%clk 0:02:59]} 15. a4 {[%clk 0:02:54]}  f4 {[%clk 0:02:59]} 16. Bf2 {[%clk 0:02:54]}  Nc5 {[%clk 0:02:57]} 17. a5 {[%clk 0:02:49]}  Nxb3 {[%clk 0:02:57]} 18. Qxb3 {[%clk 0:02:48]}  Rxa5 {[%clk 0:02:56]} 19. Rxa5 {[%clk 0:02:48]}  bxa5 {[%clk 0:02:57]} 20. Ra1 {[%clk 0:02:46]}  g5 {[%clk 0:02:57]} 21. Rxa5 {[%clk 0:02:43]}  g4 {[%clk 0:02:57]} 22. Ra8 {[%clk 0:02:39]}  gxf3 {[%clk 0:02:54]} 23. Bxf3 {[%clk 0:02:39]}  Qe8 {[%clk 0:02:54]} 24. Nb5 {[%clk 0:02:37]}  Qg6 {[%clk 0:02:47]} 25. Nxc7 {[%clk 0:02:32]}  Bg4 {[%clk 0:02:47]} 26. Rxf8+ {[%clk 0:02:30]}  Bxf8 {[%clk 0:02:48]} 27. Qd1 {[%clk 0:02:28]}  Bxf3 {[%clk 0:02:40]} 28. Qxf3 {[%clk 0:02:28]}  Kf7 {[%clk 0:02:28]} 29. Ne6 {[%clk 0:02:22]}  Ng8 {[%clk 0:02:28]} 30. c5 {[%clk 0:02:18]}  dxc5 {[%clk 0:02:27]} 31. Nxf8 {[%clk 0:02:06]}  Kxf8 {[%clk 0:02:28]} 32. Bxc5+ {[%clk 0:02:06]}  Kf7 {[%clk 0:02:28]} 33. h3 {[%clk 0:02:05]}  Nf6 {[%clk 0:02:28]} 34. d6 {[%clk 0:02:00]}  Ke8 {[%clk 0:02:07]} 35. Qb3 {[%clk 0:01:54]}  Nxe4 {[%clk 0:01:57]} 36. Qb5+ {[%clk 0:01:22]}  Kf7 {[%clk 0:01:51]} 37. Qd7+ {[%clk 0:01:04]}  Kf6 {[%clk 0:01:45]} 38. Qe7+ {[%clk 0:01:04]}  Kf5 {[%clk 0:01:45]} 39. d7 {[%clk 0:00:57]}  f3 {[%clk 0:01:33]} 40. g4+ {[%clk 0:00:52]}  Kf4 {[%clk 0:01:33]} 41. d8=Q {[%clk 0:00:49]}  Qa6 {[%clk 0:01:05]} 42. Qdf8+ {[%clk 0:00:43]}  Kg3 {[%clk 0:01:04]} 43. Qxe5+ {[%clk 0:00:38]}  Kxh3 {[%clk 0:01:03]} 44. Qxf3+ {[%clk 0:00:33]} 1-0


[Site "https://www.chess.com"]

[Event "Titled Tuesday Blitz January 17 Early 2023"]
[White "Thomas, Anysia"]
[Black "Ibadov, Dashgyn"]
[WhiteFideId "670472"]
[BlackFideId "24107514"]
[WhiteElo "2147"]
[BlackElo "2391"]
[Result "0-1"]
[Round "07"]
[TimeControl "180+2"]
[Date "2023.01.17"]
[WhiteClock "0:00:04"]
[BlackClock "0:00:17"]

1. d4 {[%clk 0:02:54]}  Nf6 {[%clk 0:02:57]} 2. c4 {[%clk 0:02:53]}  e6 {[%clk 0:02:55]} 3. Nf3 {[%clk 0:02:51]}  d5 {[%clk 0:02:53]} 4. g3 {[%clk 0:02:51]}  c6 {[%clk 0:02:51]} 5. Bg2 {[%clk 0:02:47]}  Be7 {[%clk 0:02:51]} 6. O-O {[%clk 0:02:47]}  O-O {[%clk 0:02:52]} 7. Qc2 {[%clk 0:02:47]}  b6 {[%clk 0:02:52]} 8. Nbd2 {[%clk 0:02:47]}  Bb7 {[%clk 0:02:50]} 9. e4 {[%clk 0:02:47]}  Na6 {[%clk 0:02:51]} 10. a3 {[%clk 0:02:45]}  c5 {[%clk 0:02:48]} 11. e5 {[%clk 0:02:33]}  Nd7 {[%clk 0:02:43]} 12. cxd5 {[%clk 0:02:28]}  Bxd5 {[%clk 0:02:41]} 13. Re1 {[%clk 0:02:27]}  cxd4 {[%clk 0:02:32]} 14. Nxd4 {[%clk 0:02:21]}  Bxg2 {[%clk 0:02:33]} 15. Kxg2 {[%clk 0:02:20]}  Nxe5 {[%clk 0:02:32]} 16. Nxe6 {[%clk 0:02:05]}  fxe6 {[%clk 0:02:20]} 17. Rxe5 {[%clk 0:02:03]}  Qd4 {[%clk 0:01:51]} 18. Re3 {[%clk 0:01:38]}  Rac8 {[%clk 0:01:36]} 19. Qe4 {[%clk 0:01:29]}  Qxe4+ {[%clk 0:01:14]} 20. Nxe4 {[%clk 0:01:23]}  Rc2 {[%clk 0:01:11]} 21. b4 {[%clk 0:01:22]}  Rfc8 {[%clk 0:00:56]} 22. Re1 {[%clk 0:01:02]}  Nc7 {[%clk 0:00:52]} 23. Bg5 {[%clk 0:00:41]}  Bxg5 {[%clk 0:00:29]} 24. Nxg5 {[%clk 0:00:42]}  Rf8 {[%clk 0:00:29]} 25. Rf1 {[%clk 0:00:40]}  h6 {[%clk 0:00:27]} 26. Ne4 {[%clk 0:00:33]}  Nd5 {[%clk 0:00:27]} 27. Rae1 {[%clk 0:00:26]}  Ra2 {[%clk 0:00:25]} 28. Nd6 {[%clk 0:00:21]}  Rxa3 {[%clk 0:00:20]} 29. Rxe6 {[%clk 0:00:20]}  Nxb4 {[%clk 0:00:20]} 30. Rfe1 {[%clk 0:00:17]}  Ra2 {[%clk 0:00:20]} 31. R1e2 {[%clk 0:00:13]}  Rxe2 {[%clk 0:00:20]} 32. Rxe2 {[%clk 0:00:14]}  a5 {[%clk 0:00:19]} 33. Nc4 {[%clk 0:00:13]}  a4 {[%clk 0:00:15]} 34. Nxb6 {[%clk 0:00:13]}  a3 {[%clk 0:00:15]} 35. Re1 {[%clk 0:00:04]}  Rxf2+ {[%clk 0:00:16]} 36. Kxf2 {[%clk 0:00:03]}  Nd3+ {[%clk 0:00:17]} 37. Ke2 {[%clk 0:00:04]}  Nxe1 {[%clk 0:00:17]} 0-1


[Site "https://www.chess.com"]

[Event "Titled Tuesday Blitz January 17 Early 2023"]
[White "Ruiz Castillo, Joshua Daniel"]
[Black "Rios Escobar, Adan"]
[WhiteFideId "4400704"]
[BlackFideId "3403645"]
[WhiteElo "2459"]
[BlackElo "2234"]
[Result "0-1"]
[Round "07"]
[TimeControl "180+2"]
[Date "2023.01.17"]
[WhiteClock "0:00:15"]
[BlackClock "0:00:08"]

1. Nf3 {[%clk 0:02:56]}  Nf6 {[%clk 0:02:40]} 2. g3 {[%clk 0:02:56]}  g6 {[%clk 0:02:40]} 3. Bg2 {[%clk 0:02:52]}  Bg7 {[%clk 0:02:41]} 4. O-O {[%clk 0:02:53]}  c5 {[%clk 0:02:42]} 5. d4 {[%clk 0:02:52]}  cxd4 {[%clk 0:02:41]} 6. Nxd4 {[%clk 0:02:53]}  O-O {[%clk 0:02:42]} 7. c4 {[%clk 0:02:53]}  Nc6 {[%clk 0:02:41]} 8. Nc3 {[%clk 0:02:53]}  Qa5 {[%clk 0:02:42]} 9. e3 {[%clk 0:02:30]}  d6 {[%clk 0:02:37]} 10. Nxc6 {[%clk 0:02:29]}  bxc6 {[%clk 0:02:38]} 11. Bxc6 {[%clk 0:02:29]}  Rb8 {[%clk 0:02:39]} 12. Qa4 {[%clk 0:02:19]}  Qh5 {[%clk 0:02:36]} 13. Bg2 {[%clk 0:02:15]}  Bh3 {[%clk 0:02:33]} 14. f3 {[%clk 0:02:13]}  Bxg2 {[%clk 0:02:32]} 15. Kxg2 {[%clk 0:02:14]}  Rfc8 {[%clk 0:02:18]} 16. Rf2 {[%clk 0:02:11]}  Rb7 {[%clk 0:01:55]} 17. b3 {[%clk 0:01:57]}  d5 {[%clk 0:01:36]} 18. Qa6 {[%clk 0:01:48]}  Rcb8 {[%clk 0:01:21]} 19. Ba3 {[%clk 0:01:39]}  dxc4 {[%clk 0:01:14]} 20. Qxc4 {[%clk 0:01:40]}  e6 {[%clk 0:01:09]} 21. Rc1 {[%clk 0:01:16]}  g5 {[%clk 0:00:59]} 22. g4 {[%clk 0:01:11]}  Qg6 {[%clk 0:00:43]} 23. Bd6 {[%clk 0:01:10]}  Rd8 {[%clk 0:00:40]} 24. Bg3 {[%clk 0:01:10]}  h5 {[%clk 0:00:38]} 25. h3 {[%clk 0:01:10]}  Rbd7 {[%clk 0:00:32]} 26. Rcc2 {[%clk 0:01:02]}  Rd3 {[%clk 0:00:29]} 27. Rfe2 {[%clk 0:00:51]}  Rxe3 {[%clk 0:00:23]} 28. Nb5 {[%clk 0:00:35]}  Rdd3 {[%clk 0:00:17]} 29. Rxe3 {[%clk 0:00:33]}  Rxe3 {[%clk 0:00:18]} 30. Bf2 {[%clk 0:00:32]}  Nd5 {[%clk 0:00:12]} 31. Bg3 {[%clk 0:00:17]}  Rd3 {[%clk 0:00:10]} 32. Qc8+ {[%clk 0:00:17]}  Kh7 {[%clk 0:00:10]} 33. Re2 {[%clk 0:00:18]}  h4 {[%clk 0:00:09]} 34. Bh2 {[%clk 0:00:17]}  Rd1 {[%clk 0:00:10]} 35. Nd6 {[%clk 0:00:16]}  Qd3 {[%clk 0:00:08]} 36. Rf2 {[%clk 0:00:15]}  Ne3# {[%clk 0:00:08]} 0-1


[Site "https://www.chess.com"]

[Event "Titled Tuesday Blitz January 17 Early 2023"]
[White "Atakhan, Abtin"]
[Black "Jaskolka, Tomasz"]
[WhiteFideId "22502203"]
[BlackFideId "1170791"]
[WhiteElo "2422"]
[BlackElo "2238"]
[Result "0-1"]
[Round "07"]
[TimeControl "180+2"]
[Date "2023.01.17"]
[WhiteClock "0:00:05"]
[BlackClock "0:00:05"]

1. Nf3 {[%clk 0:03:00]}  d5 {[%clk 0:02:59]} 2. d4 {[%clk 0:03:01]}  Nc6 {[%clk 0:02:59]} 3. c4 {[%clk 0:02:58]}  e5 {[%clk 0:02:59]} 4. dxe5 {[%clk 0:02:52]}  d4 {[%clk 0:02:59]} 5. g3 {[%clk 0:02:51]}  Nge7 {[%clk 0:02:54]} 6. Bg2 {[%clk 0:02:51]}  Ng6 {[%clk 0:02:55]} 7. a3 {[%clk 0:02:47]}  a5 {[%clk 0:02:54]} 8. e3 {[%clk 0:02:35]}  Bc5 {[%clk 0:02:45]} 9. exd4 {[%clk 0:02:33]}  Nxd4 {[%clk 0:02:45]} 10. O-O {[%clk 0:02:20]}  Bg4 {[%clk 0:02:38]} 11. Nbd2 {[%clk 0:02:03]}  Qd7 {[%clk 0:02:33]} 12. Re1 {[%clk 0:01:53]}  O-O-O {[%clk 0:02:18]} 13. b4 {[%clk 0:01:37]}  Nxf3+ {[%clk 0:01:48]} 14. Bxf3 {[%clk 0:01:35]}  Bxf2+ {[%clk 0:01:32]} 15. Kxf2 {[%clk 0:01:34]}  Qd4+ {[%clk 0:01:32]} 16. Kg2 {[%clk 0:00:57]}  Bxf3+ {[%clk 0:01:30]} 17. Qxf3 {[%clk 0:00:58]}  Qxa1 {[%clk 0:01:30]} 18. bxa5 {[%clk 0:00:55]}  Nxe5 {[%clk 0:01:26]} 19. Qf5+ {[%clk 0:00:53]}  Nd7 {[%clk 0:01:09]} 20. Qb5 {[%clk 0:00:43]}  Rde8 {[%clk 0:00:49]} 21. Rxe8+ {[%clk 0:00:21]}  Rxe8 {[%clk 0:00:48]} 22. a6 {[%clk 0:00:12]}  Qxc1 {[%clk 0:00:25]} 23. axb7+ {[%clk 0:00:12]}  Kb8 {[%clk 0:00:22]} 24. Qxd7 {[%clk 0:00:13]}  Qe1 {[%clk 0:00:12]} 25. c5 {[%clk 0:00:05]}  Qe2+ {[%clk 0:00:11]} 26. Kh3 {[%clk 0:00:05]}  Qe6+ {[%clk 0:00:11]} 27. Qxe6 {[%clk 0:00:06]}  Rxe6 {[%clk 0:00:12]} 28. Nb3 {[%clk 0:00:04]}  Kxb7 {[%clk 0:00:11]} 29. Nd4 {[%clk 0:00:05]}  Re4 {[%clk 0:00:08]} 30. Nf5 {[%clk 0:00:05]}  g6 {[%clk 0:00:07]} 31. Nh6 {[%clk 0:00:03]}  f5 {[%clk 0:00:05]} 32. Nf7 {[%clk 0:00:04]}  Ra4 {[%clk 0:00:05]} 33. Nd8+ {[%clk 0:00:03]}  Kc8 {[%clk 0:00:04]} 34. Ne6 {[%clk 0:00:04]}  Rxa3 {[%clk 0:00:04]} 35. Kh4 {[%clk 0:00:04]}  Re3 {[%clk 0:00:04]} 36. Nd4 {[%clk 0:00:03]}  Re4+ {[%clk 0:00:05]} 37. Kg5 {[%clk 0:00:04]}  Rxd4 {[%clk 0:00:06]} 38. Kh6 {[%clk 0:00:05]}  Rd2 {[%clk 0:00:05]} 0-1


[Site "https://www.chess.com"]

[Event "Titled Tuesday Blitz January 17 Early 2023"]
[White "Sourath Biswas"]
[Black "Buscar, Michael"]
[WhiteFideId "35091484"]
[BlackFideId "2603616"]
[WhiteElo "2281"]
[BlackElo "2041"]
[Result "1/2-1/2"]
[Round "07"]
[TimeControl "180+2"]
[Date "2023.01.17"]
[WhiteClock "0:00:06"]
[BlackClock "0:00:09"]

1. d4 {[%clk 0:02:55]}  d5 {[%clk 0:02:45]} 2. Bf4 {[%clk 0:02:50]}  Nf6 {[%clk 0:02:43]} 3. e3 {[%clk 0:02:46]}  e6 {[%clk 0:02:41]} 4. Nf3 {[%clk 0:02:45]}  Bd6 {[%clk 0:02:34]} 5. c3 {[%clk 0:02:41]}  O-O {[%clk 0:02:30]} 6. Nbd2 {[%clk 0:02:34]}  Nbd7 {[%clk 0:02:28]} 7. Bd3 {[%clk 0:02:27]}  Bxf4 {[%clk 0:02:22]} 8. exf4 {[%clk 0:02:25]}  c5 {[%clk 0:02:23]} 9. g3 {[%clk 0:02:15]}  b6 {[%clk 0:02:17]} 10. Qe2 {[%clk 0:02:14]}  Bb7 {[%clk 0:02:13]} 11. h4 {[%clk 0:02:11]}  Qc7 {[%clk 0:02:09]} 12. h5 {[%clk 0:02:08]}  a6 {[%clk 0:02:04]} 13. h6 {[%clk 0:02:08]}  g6 {[%clk 0:02:04]} 14. Ne5 {[%clk 0:02:07]}  b5 {[%clk 0:02:01]} 15. Nxd7 {[%clk 0:01:51]}  Nxd7 {[%clk 0:01:59]} 16. Nf3 {[%clk 0:01:51]}  b4 {[%clk 0:01:55]} 17. O-O {[%clk 0:01:46]}  a5 {[%clk 0:01:46]} 18. a3 {[%clk 0:01:34]}  Qd6 {[%clk 0:01:28]} 19. Bb5 {[%clk 0:01:29]}  Ba6 {[%clk 0:01:21]} 20. Bxa6 {[%clk 0:01:19]}  Qxa6 {[%clk 0:01:01]} 21. Qxa6 {[%clk 0:01:17]}  Rxa6 {[%clk 0:01:00]} 22. axb4 {[%clk 0:01:17]}  cxb4 {[%clk 0:01:00]} 23. cxb4 {[%clk 0:01:11]}  a4 {[%clk 0:01:01]} 24. Ne1 {[%clk 0:00:55]}  Nb6 {[%clk 0:00:57]} 25. Nd3 {[%clk 0:00:52]}  Rfa8 {[%clk 0:00:53]} 26. Rfc1 {[%clk 0:00:49]}  Nc4 {[%clk 0:00:53]} 27. Nc5 {[%clk 0:00:31]}  R6a7 {[%clk 0:00:46]} 28. Rc2 {[%clk 0:00:32]}  Kf8 {[%clk 0:00:32]} 29. Ra2 {[%clk 0:00:28]}  Ke7 {[%clk 0:00:31]} 30. Rc1 {[%clk 0:00:28]}  Kf6 {[%clk 0:00:27]} 31. Rca1 {[%clk 0:00:28]}  Nb6 {[%clk 0:00:27]} 32. b3 {[%clk 0:00:28]}  a3 {[%clk 0:00:25]} 33. Na4 {[%clk 0:00:26]}  Nxa4 {[%clk 0:00:14]} 34. Rxa3 {[%clk 0:00:25]}  Rb8 {[%clk 0:00:13]} 35. Rxa4 {[%clk 0:00:24]}  Rab7 {[%clk 0:00:13]} 36. Rd1 {[%clk 0:00:21]}  Rxb4 {[%clk 0:00:13]} 37. Rxb4 {[%clk 0:00:21]}  Rxb4 {[%clk 0:00:13]} 38. Rd3 {[%clk 0:00:22]}  g5 {[%clk 0:00:12]} 39. fxg5+ {[%clk 0:00:20]}  Kxg5 {[%clk 0:00:12]} 40. Kg2 {[%clk 0:00:20]}  Kxh6 {[%clk 0:00:12]} 41. Kf3 {[%clk 0:00:21]}  Kg5 {[%clk 0:00:13]} 42. Ke3 {[%clk 0:00:21]}  Kf5 {[%clk 0:00:13]} 43. Kd2 {[%clk 0:00:22]}  h5 {[%clk 0:00:10]} 44. Kc3 {[%clk 0:00:22]}  Rb7 {[%clk 0:00:11]} 45. Rf3+ {[%clk 0:00:23]}  Kg5 {[%clk 0:00:09]} 46. b4 {[%clk 0:00:23]}  f6 {[%clk 0:00:08]} 47. Kb3 {[%clk 0:00:21]}  e5 {[%clk 0:00:08]} 48. dxe5 {[%clk 0:00:19]}  fxe5 {[%clk 0:00:09]} 49. Rd3 {[%clk 0:00:19]}  d4 {[%clk 0:00:08]} 50. Kc4 {[%clk 0:00:19]}  h4 {[%clk 0:00:07]} 51. gxh4+ {[%clk 0:00:19]}  Kxh4 {[%clk 0:00:07]} 52. b5 {[%clk 0:00:20]}  Kg4 {[%clk 0:00:07]} 53. Kc5 {[%clk 0:00:19]}  Kf4 {[%clk 0:00:07]} 54. Kc6 {[%clk 0:00:19]}  Rh7 {[%clk 0:00:07]} 55. b6 {[%clk 0:00:19]}  Ke4 {[%clk 0:00:07]} 56. Rd2 {[%clk 0:00:18]}  Rh6+ {[%clk 0:00:06]} 57. Kb7 {[%clk 0:00:18]}  Kd5 {[%clk 0:00:05]} 58. Ka7 {[%clk 0:00:17]}  Kc4 {[%clk 0:00:03]} 59. b7 {[%clk 0:00:17]}  Rh7 {[%clk 0:00:04]} 60. Ka8 {[%clk 0:00:13]}  Rxb7 {[%clk 0:00:04]} 61. Kxb7 {[%clk 0:00:11]}  Kc3 {[%clk 0:00:04]} 62. Rd1 {[%clk 0:00:09]}  e4 {[%clk 0:00:05]} 63. Kc6 {[%clk 0:00:09]}  e3 {[%clk 0:00:06]} 64. fxe3 {[%clk 0:00:05]}  dxe3 {[%clk 0:00:07]} 65. Re1 {[%clk 0:00:04]}  Kd2 {[%clk 0:00:07]} 66. Rh1 {[%clk 0:00:04]}  e2 {[%clk 0:00:08]} 67. Kd5 {[%clk 0:00:05]}  e1=Q {[%clk 0:00:08]} 68. Rxe1 {[%clk 0:00:06]}  Kxe1 {[%clk 0:00:09]} 1/2-1/2


[Site "https://www.chess.com"]

[Event "Titled Tuesday Blitz January 17 Early 2023"]
[White "Gutkin, Ilya"]
[Black "Hamley, Ryan"]
[WhiteFideId "16203470"]
[BlackFideId "30959497"]
[WhiteElo "2273"]
[BlackElo "2092"]
[Result "0-1"]
[Round "07"]
[TimeControl "180+2"]
[Date "2023.01.17"]
[WhiteClock "0:00:03"]
[BlackClock "0:01:58"]

1. e4 {[%clk 0:03:00]}  e5 {[%clk 0:02:58]} 2. Nf3 {[%clk 0:03:00]}  Nc6 {[%clk 0:02:59]} 3. Bb5 {[%clk 0:02:58]}  a6 {[%clk 0:02:59]} 4. Bxc6 {[%clk 0:02:58]}  dxc6 {[%clk 0:02:59]} 5. Nc3 {[%clk 0:02:58]}  Bd6 {[%clk 0:02:54]} 6. d4 {[%clk 0:02:57]}  exd4 {[%clk 0:02:51]} 7. Qxd4 {[%clk 0:02:58]}  f6 {[%clk 0:02:51]} 8. Be3 {[%clk 0:02:58]}  Qe7 {[%clk 0:02:48]} 9. O-O-O {[%clk 0:02:52]}  Nh6 {[%clk 0:02:48]} 10. Bxh6 {[%clk 0:02:51]}  gxh6 {[%clk 0:02:48]} 11. Qd2 {[%clk 0:02:32]}  h5 {[%clk 0:02:40]} 12. Nh4 {[%clk 0:02:26]}  Be6 {[%clk 0:02:34]} 13. Nf5 {[%clk 0:02:23]}  Bxf5 {[%clk 0:02:32]} 14. exf5 {[%clk 0:02:24]}  O-O-O {[%clk 0:02:32]} 15. Rhe1 {[%clk 0:02:10]}  Qg7 {[%clk 0:02:31]} 16. Qe3 {[%clk 0:01:54]}  Kb8 {[%clk 0:02:26]} 17. g3 {[%clk 0:01:51]}  Qg4 {[%clk 0:02:24]} 18. Qe4 {[%clk 0:01:22]}  Qg5+ {[%clk 0:02:23]} 19. f4 {[%clk 0:01:12]}  Qg4 {[%clk 0:02:21]} 20. a3 {[%clk 0:01:07]}  h4 {[%clk 0:02:15]} 21. Rd3 {[%clk 0:00:55]}  hxg3 {[%clk 0:02:12]} 22. hxg3 {[%clk 0:00:54]}  h5 {[%clk 0:02:13]} 23. Kb1 {[%clk 0:00:46]}  h4 {[%clk 0:02:12]} 24. gxh4 {[%clk 0:00:44]}  Rxh4 {[%clk 0:02:05]} 25. Rf1 {[%clk 0:00:27]}  Rh5 {[%clk 0:02:05]} 26. Qe2 {[%clk 0:00:18]}  Qxe2 {[%clk 0:02:03]} 27. Nxe2 {[%clk 0:00:19]}  Rxf5 {[%clk 0:02:04]} 28. Ng3 {[%clk 0:00:18]}  Rd5 {[%clk 0:02:01]} 29. Nh5 {[%clk 0:00:13]}  Rxh5 {[%clk 0:02:00]} 30. f5 {[%clk 0:00:10]}  Re8 {[%clk 0:02:01]} 31. Rd2 {[%clk 0:00:07]}  Be5 {[%clk 0:02:00]} 32. Rg2 {[%clk 0:00:08]}  Rh2 {[%clk 0:01:59]} 33. Rxh2 {[%clk 0:00:04]}  Bxh2 {[%clk 0:01:59]} 34. Rh1 {[%clk 0:00:05]}  Be5 {[%clk 0:01:58]} 35. Rh7 {[%clk 0:00:04]}  Rg8 {[%clk 0:01:59]} 36. c3 {[%clk 0:00:04]}  Rg5 {[%clk 0:01:59]} 37. Rh8+ {[%clk 0:00:03]}  Ka7 {[%clk 0:01:58]} 0-1


[Site "https://www.chess.com"]